Workbook

Sheet 体检名单
A1: 附件：1
A2: 六盘水市中医医院2023年面向社会公开招聘编外医务人员进入体检范围人员名单
A3: 序号 | B3: 姓名 | C3: 单位代码 | D3: 职位 代码 | E3: 笔试准考证号 | F3: 面试准考证号 | G3: 笔试成绩 | H3: 面试成绩 | I3: 总成绩=（笔试成绩/1.5*60%+面试成绩*40%） | J3: 备注
A4: 1 | B4: 李思李 | C4: 20230901 | D4: 01 | E4: ="202309011030" -> 202309011030 | F4: 202311110101 | G4: =VLOOKUP(E4,[1]笔试排名!$E$3:$F$315,2,0) -> 102.33 | H4: 76.40 | I4: 71.49
A5: 2 | B5: 徐天钟 | C5: 20230901 | D5: 01 | E5: ="202309011115" -> 202309011115 | F5: 202311110102 | G5: =VLOOKUP(E5,[1]笔试排名!$E$3:$F$315,2,0) -> 98.67 | H5: 76.30 | I5: 69.99
A6: 3 | B6: 张晓 | C6: 20230901 | D6: 01 | E6: ="202309011021" -> 202309011021 | F6: 202311110104 | G6: =VLOOKUP(E6,[1]笔试排名!$E$3:$F$315,2,0) -> 90.91 | H6: 79.20 | I6: 68.04
A7: 4 | B7: 代青苹 | C7: 20230901 | D7: 01 | E7: ="202309011104" -> 202309011104 | F7: 202311110103 | G7: =VLOOKUP(E7,[1]笔试排名!$E$3:$F$315,2,0) -> 92.07 | H7: 75.80 | I7: 67.15
A8: 5 | B8: 颜欢 | C8: 20230901 | D8: 01 | E8: ="202309011105" -> 202309011105 | F8: 202311110107 | G8: =VLOOKUP(E8,[1]笔试排名!$E$3:$F$315,2,0) -> 87.49 | H8: 79.10 | I8: 66.64
A9: 6 | B9: 陈鹏 | C9: 20230901 | D9: 01 | E9: ="202309011113" -> 202309011113 | F9: 202311110105 | G9: =VLOOKUP(E9,[1]笔试排名!$E$3:$F$315,2,0) -> 87.72 | H9: 78.80 | I9: 66.61
A10: 7 | B10: 罗秀林 | C10: 20230901 | D10: 01 | E10: ="202309011112" -> 202309011112 | F10: 202311110106 | G10: =VLOOKUP(E10,[1]笔试排名!$E$3:$F$315,2,0) -> 87.56 | H10: 77.40 | I10: 65.98
A11: 8 | B11: 李婷 | C11: 20230901 | D11: 01 | E11: ="202309011106" -> 202309011106 | F11: 202311110108 | G11: =VLOOKUP(E11,[1]笔试排名!$E$3:$F$315,2,0) -> 85.19 | H11: 73.40 | I11: 63.44
A12: 9 | B12: 严宪 | C12: 20230901 | D12: 01 | E12: ="202309011023" -> 202309011023 | F12: 202311110112 | G12: =VLOOKUP(E12,[1]笔试排名!$E$3:$F$315,2,0) -> 82.30 | H12: 76.10 | I12: 63.36
A13: 10 | B13: 孔维蚕 | C13: 20230901 | D13: 01 | E13: ="202309011102" -> 202309011102 | F13: 202311110109 | G13: =VLOOKUP(E13,[1]笔试排名!$E$3:$F$315,2,0) -> 85.04 | H13: 72.80 | I13: 63.14
A14: 11 | B14: 杨娟 | C14: 20230901 | D14: 02 | E14: 202309011202 | F14: 202311110301 | G14: 103.88 | H14: 77.06 | I14: 72.38
A15: 12 | B15: 段忠梅 | C15: 20230901 | D15: 02 | E15: 202309011118 | F15: 202311110303 | G15: 95.60 | H15: 75.44 | I15: 68.42
A16: 13 | B16: 张文杰 | C16: 20230901 | D16: 02 | E16: 202309011126 | F16: 202311110304 | G16: 94.34 | H16: 76.34 | I16: 68.27
A17: 14 | B17: 林丽 | C17: 20230901 | D17: 02 | E17: 202309011122 | F17: 202311110306 | G17: 92.02 | H17: 71.72 | I17: 65.50
A18: 15 | B18: 卢思涛 | C18: 20230903 | D18: 01 | E18: ="202309010119" -> 202309010119 | F18: 202311110113 | G18: =VLOOKUP(E18,[1]笔试排名!$E$3:$F$315,2,0) -> 126.89 | H18: 78.90 | I18: 82.32
A19: 16 | B19: 林露露 | C19: 20230903 | D19: 01 | E19: ="202309010116" -> 202309010116 | F19: 202311110115 | G19: =VLOOKUP(E19,[1]笔试排名!$E$3:$F$315,2,0) -> 118.85 | H19: 81.00 | I19: 79.94
A20: 17 | B20: 向永春 | C20: 20230903 | D20: 01 | E20: ="202309010106" -> 202309010106 | F20: 202311110114 | G20: =VLOOKUP(E20,[1]笔试排名!$E$3:$F$315,2,0) -> 119.36 | H20: 76.00 | I20: 78.14
A21: 18 | B21: 姜华蓉 | C21: 20230903 | D21: 01 | E21: ="202309010110" -> 202309010110 | F21: 202311110118 | G21: =VLOOKUP(E21,[1]笔试排名!$E$3:$F$315,2,0) -> 115.42 | H21: 79.20 | I21: 77.85
A22: 19 | B22: 田仁祥 | C22: 20230903 | D22: 01 | E22: ="202309010118" -> 202309010118 | F22: 202311110116 | G22: =VLOOKUP(E22,[1]笔试排名!$E$3:$F$315,2,0) -> 117.87 | H22: 71.80 | I22: 75.87
A23: 20 | B23: 王璐玮 | C23: 20230903 | D23: 01 | E23: ="202309010104" -> 202309010104 | F23: 202311110119 | G23: =VLOOKUP(E23,[1]笔试排名!$E$3:$F$315,2,0) -> 113.00 | H23: 74.70 | I23: 75.08
A24: 21 | B24: 赵倩 | C24: 20230904 | D24: 01 | E24: ="202309010206" -> 202309010206 | F24: 202311110201 | G24: =VLOOKUP(E24,[1]笔试排名!$E$3:$F$315,2,0) -> 114.16 | H24: 72.50 | I24: 74.66
A25: 22 | B25: 潘志勇 | C25: 20230904 | D25: 01 | E25: ="202309010302" -> 202309010302 | F25: 202311110208 | G25: =VLOOKUP(E25,[1]笔试排名!$E$3:$F$315,2,0) -> 109.13 | H25: 76.20 | I25: 74.13
A26: 23 | B26: 杨敏 | C26: 20230904 | D26: 01 | E26: ="202309010216" -> 202309010216 | F26: 202311110207 | G26: =VLOOKUP(E26,[1]笔试排名!$E$3:$F$315,2,0) -> 109.23 | H26: 76.00 | I26: 74.09
A27: 24 | B27: 沙鑫 | C27: 20230904 | D27: 01 | E27: ="202309010219" -> 202309010219 | F27: 202311110212 | G27: =VLOOKUP(E27,[1]笔试排名!$E$3:$F$315,2,0) -> 107.35 | H27: 77.50 | I27: 73.94
A28: 25 | B28: 刘白燕 | C28: 20230904 | D28: 01 | E28: ="202309010221" -> 202309010221 | F28: 202311110205 | G28: =VLOOKUP(E28,[1]笔试排名!$E$3:$F$315,2,0) -> 110.52 | H28: 74.20 | I28: 73.89
A29: 26 | B29: 章晶宇 | C29: 20230904 | D29: 01 | E29: ="202309010218" -> 202309010218 | F29: 202311110204 | G29: =VLOOKUP(E29,[1]笔试排名!$E$3:$F$315,2,0) -> 111.17 | H29: 72.70 | I29: 73.55
A30: 27 | B30: 周涛 | C30: 20230904 | D30: 01 | E30: ="202309010203" -> 202309010203 | F30: 202311110209 | G30: =VLOOKUP(E30,[1]笔试排名!$E$3:$F$315,2,0) -> 108.59 | H30: 74.96 | I30: 73.42
A31: 28 | B31: 胡盼 | C31: 20230904 | D31: 01 | E31: ="202309010215" -> 202309010215 | F31: 202311110211 | G31: =VLOOKUP(E31,[1]笔试排名!$E$3:$F$315,2,0) -> 108.36 | H31: 74.90 | I31: 73.30
A32: 29 | B32: 王梅 | C32: 20230904 | D32: 01 | E32: ="202309010208" -> 202309010208 | F32: 202311110202 | G32: =VLOOKUP(E32,[1]笔试排名!$E$3:$F$315,2,0) -> 111.68 | H32: 71.20 | I32: 73.15
A33: 30 | B33: 晋丽 | C33: 20230905 | D33: 01 | E33: ="202309010811" -> 202309010811 | F33: 202311110226 | G33: =VLOOKUP(E33,[1]笔试排名!$E$3:$F$315,2,0) -> 105.81 | H33: 76.20 | I33: 72.80
A34: 31 | B34: 尹贤武 | C34: 20230905 | D34: 01 | E34: ="202309010320" -> 202309010320 | F34: 202311110229 | G34: =VLOOKUP(E34,[1]笔试排名!$E$3:$F$315,2,0) -> 99.54 | H34: 78.00 | I34: 71.02
A35: 32 | B35: 彭红贵 | C35: 20230905 | D35: 01 | E35: ="202309011012" -> 202309011012 | F35: 202311110228 | G35: =VLOOKUP(E35,[1]笔试排名!$E$3:$F$315,2,0) -> 100.19 | H35: 74.40 | I35: 69.84
A36: 33 | B36: 郭康 | C36: 20230905 | D36: 01 | E36: ="202309010508" -> 202309010508 | F36: 202311110232 | G36: =VLOOKUP(E36,[1]笔试排名!$E$3:$F$315,2,0) -> 97.12 | H36: 76.00 | I36: 69.25
A37: 34 | B37: 李敏 | C37: 20230907 | D37: 01 | E37: 202309011304 | F37: 202311110311 | G37: 94.05 | H37: 76.60 | I37: 68.26
A38: 35 | B38: 姚燕 | C38: 20230907 | D38: 01 | E38: 202309011227 | F38: 202311110314 | G38: 90.27 | H38: 78.18 | I38: 67.38
A39: 36 | B39: 彭孝先 | C39: 20230907 | D39: 01 | E39: 202309011217 | F39: 202311110312 | G39: 93.13 | H39: 72.80 | I39: 66.37
A40: 37 | B40: 卢璐 | C40: 20230907 | D40: 01 | E40: 202309011306 | F40: 202311110315 | G40: 85.47 | H40: 72.30 | I40: 63.11
A41: 38 | B41: 饶曼 | C41: 20230908 | D41: 01 | E41: ="202309011317" -> 202309011317 | F41: 202311110319 | G41: =VLOOKUP(E41,[1]笔试排名!$E$3:$F$315,2,0) -> 115.42 | H41: 72.80 | I41: 75.29
A42: 39 | B42: 朱卫 | C42: 20230909 | D42: 01 | E42: ="202309011325" -> 202309011325 | F42: 202311110323 | G42: =VLOOKUP(E42,[1]笔试排名!$E$3:$F$315,2,0) -> 119.93 | H42: 80.70 | I42: 80.25
A43: 40 | B43: 安晓芳 | C43: 20230909 | D43: 01 | E43: ="202309011507" -> 202309011507 | F43: 202311110324 | G43: =VLOOKUP(E43,[1]笔试排名!$E$3:$F$315,2,0) -> 114.39 | H43: 78.16 | I43: 77.02
A44: 41 | B44: 吴浪琴 | C44: 20230910 | D44: 01 | E44: ="202309012022" -> 202309012022 | F44: 202311110329 | G44: =VLOOKUP(E44,[1]笔试排名!$E$3:$F$315,2,0) -> 111.53 | H44: 76.72 | I44: 75.30
A45: 42 | B45: 高领秀 | C45: 20230910 | D45: 01 | E45: ="202309011919" -> 202309011919 | F45: 202311110330 | G45: =VLOOKUP(E45,[1]笔试排名!$E$3:$F$315,2,0) -> 109.44 | H45: 78.08 | I45: 75.01
A46: 43 | B46: 马娇 | C46: 20230911 | D46: 01 | E46: ="202309012218" -> 202309012218 | F46: 202311110403 | G46: =VLOOKUP(E46,[1]笔试排名!$E$3:$F$315,2,0) -> 102.74 | H46: 79.60 | I46: 72.94
A47: 44 | B47: 余啸 | C47: 20230911 | D47: 01 | E47: ="202309012306" -> 202309012306 | F47: 202311110401 | G47: =VLOOKUP(E47,[1]笔试排名!$E$3:$F$315,2,0) -> 104.47 | H47: 77.00 | I47: 72.59
A48: 45 | B48: 陈琴 | C48: 20230912 | D48: 01 | E48: ="202309014407" -> 202309014407 | F48: 202311110409 | G48: =VLOOKUP(E48,[1]笔试排名!$E$3:$F$315,2,0) -> 118.02 | H48: 79.00 | I48: 78.81
A49: 46 | B49: 王志遥 | C49: 20230912 | D49: 01 | E49: ="202309013914" -> 202309013914 | F49: 202311110407 | G49: =VLOOKUP(E49,[1]笔试排名!$E$3:$F$315,2,0) -> 122.79 | H49: 70.20 | I49: 77.20
A50: 47 | B50: 孙思琴 | C50: 20230912 | D50: 01 | E50: ="202309012820" -> 202309012820 | F50: 202311110408 | G50: =VLOOKUP(E50,[1]笔试排名!$E$3:$F$315,2,0) -> 118.38 | H50: 73.60 | I50: 76.79
A51: 48 | B51: 赵君珲 | C51: 20230912 | D51: 01 | E51: ="202309013909" -> 202309013909 | F51: 202311110413 | G51: =VLOOKUP(E51,[1]笔试排名!$E$3:$F$315,2,0) -> 114.10 | H51: 76.00 | I51: 76.04
A52: 49 | B52: 孙艳梅 | C52: 20230912 | D52: 01 | E52: ="202309013408" -> 202309013408 | F52: 202311110410 | G52: =VLOOKUP(E52,[1]笔试排名!$E$3:$F$315,2,0) -> 115.96 | H52: 73.60 | I52: 75.82
A53: 50 | B53: 严智 | C53: 20230912 | D53: 01 | E53: ="202309013702" -> 202309013702 | F53: 202311110411 | G53: =VLOOKUP(E53,[1]笔试排名!$E$3:$F$315,2,0) -> 114.49 | H53: 74.80 | I53: 75.72
A54: 51 | B54: 褚雄 | C54: 20230912 | D54: 01 | E54: ="202309013212" -> 202309013212 | F54: 202311110412 | G54: =VLOOKUP(E54,[1]笔试排名!$E$3:$F$315,2,0) -> 114.13 | H54: 73.20 | I54: 74.93
A55: 52 | B55: 徐章佑 | C55: 20230912 | D55: 01 | E55: ="202309012512" -> 202309012512 | F55: 202311110418 | G55: =VLOOKUP(E55,[1]笔试排名!$E$3:$F$315,2,0) -> 111.25 | H55: 75.70 | I55: 74.78
A56: 53 | B56: 郭秘 | C56: 20230912 | D56: 01 | E56: ="202309013905" -> 202309013905 | F56: 202311110432 | G56: =VLOOKUP(E56,[1]笔试排名!$E$3:$F$315,2,0) -> 108.12 | H56: 76.80 | I56: 73.97
A57: 54 | B57: 卯昌厚 | C57: 20230912 | D57: 01 | E57: ="202309013327" -> 202309013327 | F57: 202311110426 | G57: =VLOOKUP(E57,[1]笔试排名!$E$3:$F$315,2,0) -> 109.36 | H57: 75.40 | I57: 73.90
A58: 55 | B58: 曹红 | C58: 20230912 | D58: 02 | E58: ="202309020720" -> 202309020720 | F58: 202311110501 | G58: =VLOOKUP(E58,[1]笔试排名!$E$3:$F$315,2,0) -> 126.76 | H58: 73.80 | I58: 80.22
A59: 56 | B59: 周倩 | C59: 20230912 | D59: 02 | E59: ="202309016604" -> 202309016604 | F59: 202311110503 | G59: =VLOOKUP(E59,[1]笔试排名!$E$3:$F$315,2,0) -> 120.85 | H59: 79.10 | I59: 79.98
A60: 57 | B60: 安红宪 | C60: 20230912 | D60: 02 | E60: ="202309021128" -> 202309021128 | F60: 202311110504 | G60: =VLOOKUP(E60,[1]笔试排名!$E$3:$F$315,2,0) -> 118.49 | H60: 80.20 | I60: 79.48
A61: 58 | B61: 彭润 | C61: 20230912 | D61: 02 | E61: ="202309020907" -> 202309020907 | F61: 202311110510 | G61: =VLOOKUP(E61,[1]笔试排名!$E$3:$F$315,2,0) -> 115.65 | H61: 81.20 | I61: 78.74
A62: 59 | B62: 黄丽 | C62: 20230912 | D62: 02 | E62: ="202309015523" -> 202309015523 | F62: 202311110513 | G62: =VLOOKUP(E62,[1]笔试排名!$E$3:$F$315,2,0) -> 115.18 | H62: 80.20 | I62: 78.15
A63: 60 | B63: 尹维俊 | C63: 20230912 | D63: 02 | E63: ="202309016329" -> 202309016329 | F63: 202311110515 | G63: =VLOOKUP(E63,[1]笔试排名!$E$3:$F$315,2,0) -> 114.77 | H63: 80.40 | I63: 78.07
A64: 61 | B64: 陈琴 | C64: 20230912 | D64: 02 | E64: ="202309021215" -> 202309021215 | F64: 202311110509 | G64: =VLOOKUP(E64,[1]笔试排名!$E$3:$F$315,2,0) -> 115.70 | H64: 79.40 | I64: 78.04
A65: 62 | B65: 柯贤薇 | C65: 20230912 | D65: 02 | E65: ="202309015303" -> 202309015303 | F65: 202311110506 | G65: =VLOOKUP(E65,[1]笔试排名!$E$3:$F$315,2,0) -> 116.11 | H65: 78.40 | I65: 77.80
A66: 63 | B66: 唐星 | C66: 20230912 | D66: 02 | E66: ="202309021822" -> 202309021822 | F66: 202311110512 | G66: =VLOOKUP(E66,[1]笔试排名!$E$3:$F$315,2,0) -> 115.24 | H66: 78.60 | I66: 77.54
A67: 64 | B67: 林银 | C67: 20230912 | D67: 02 | E67: ="202309016213" -> 202309016213 | F67: 202311110521 | G67: =VLOOKUP(E67,[1]笔试排名!$E$3:$F$315,2,0) -> 113.28 | H67: 80.50 | I67: 77.51
A68: 65 | B68: 冯桂金 | C68: 20230912 | D68: 02 | E68: ="202309021421" -> 202309021421 | F68: 202311110507 | G68: =VLOOKUP(E68,[1]笔试排名!$E$3:$F$315,2,0) -> 116.06 | H68: 77.40 | I68: 77.38
A69: 66 | B69: 宋勤 | C69: 20230912 | D69: 02 | E69: ="202309021310" -> 202309021310 | F69: 202311110523 | G69: =VLOOKUP(E69,[1]笔试排名!$E$3:$F$315,2,0) -> 113.10 | H69: 80.30 | I69: 77.36
A70: 67 | B70: 黄均敏 | C70: 20230912 | D70: 02 | E70: ="202309021414" -> 202309021414 | F70: 202311110511 | G70: =VLOOKUP(E70,[1]笔试排名!$E$3:$F$315,2,0) -> 115.65 | H70: 77.16 | I70: 77.12
A71: 68 | B71: 伍兴慧 | C71: 20230912 | D71: 02 | E71: ="202309014527" -> 202309014527 | F71: 202311110522 | G71: =VLOOKUP(E71,[1]笔试排名!$E$3:$F$315,2,0) -> 113.23 | H71: 78.50 | I71: 76.69
A72: 69 | B72: 聂婷 | C72: 20230912 | D72: 02 | E72: ="202309021413" -> 202309021413 | F72: 202311110518 | G72: =VLOOKUP(E72,[1]笔试排名!$E$3:$F$315,2,0) -> 113.97 | H72: 77.30 | I72: 76.51
A73: 70 | B73: 张宇 | C73: 20230912 | D73: 03 | E73: ="202309023427" -> 202309023427 | F73: 202311110607 | G73: =VLOOKUP(E73,[1]笔试排名!$E$3:$F$315,2,0) -> 123.07 | H73: 82.40 | I73: 82.19
A74: 71 | B74: 成彩 | C74: 20230912 | D74: 03 | E74: ="202309024021" -> 202309024021 | F74: 202311110601 | G74: =VLOOKUP(E74,[1]笔试排名!$E$3:$F$315,2,0) -> 126.30 | H74: 78.50 | I74: 81.92
A75: 72 | B75: 石原芳 | C75: 20230912 | D75: 03 | E75: ="202309024228" -> 202309024228 | F75: 202311110602 | G75: =VLOOKUP(E75,[1]笔试排名!$E$3:$F$315,2,0) -> 125.03 | H75: 78.80 | I75: 81.53
A76: 73 | B76: 邓莉 | C76: 20230912 | D76: 03 | E76: ="202309024112" -> 202309024112 | F76: 202311110609 | G76: =VLOOKUP(E76,[1]笔试排名!$E$3:$F$315,2,0) -> 122.20 | H76: 81.20 | I76: 81.36
A77: 74 | B77: 吴鸿 | C77: 20230912 | D77: 03 | E77: ="202309024013" -> 202309024013 | F77: 202311110615 | G77: =VLOOKUP(E77,[1]笔试排名!$E$3:$F$315,2,0) -> 121.03 | H77: 82.00 | I77: 81.21
A78: 75 | B78: 谭玉华 | C78: 20230912 | D78: 03 | E78: ="202309023418" -> 202309023418 | F78: 202311110612 | G78: =VLOOKUP(E78,[1]笔试排名!$E$3:$F$315,2,0) -> 121.37 | H78: 80.60 | I78: 80.79
A79: 76 | B79: 黄承会 | C79: 20230912 | D79: 03 | E79: ="202309024716" -> 202309024716 | F79: 202311110617 | G79: =VLOOKUP(E79,[1]笔试排名!$E$3:$F$315,2,0) -> 119.95 | H79: 81.60 | I79: 80.62
A80: 77 | B80: 张婷 | C80: 20230912 | D80: 03 | E80: ="202309022324" -> 202309022324 | F80: 202311110608 | G80: =VLOOKUP(E80,[1]笔试排名!$E$3:$F$315,2,0) -> 122.37 | H80: 79.00 | I80: 80.55
A81: 78 | B81: 朱娇 | C81: 20230912 | D81: 03 | E81: ="202309024604" -> 202309024604 | F81: 202311110614 | G81: =VLOOKUP(E81,[1]笔试排名!$E$3:$F$315,2,0) -> 121.14 | H81: 80.20 | I81: 80.54
A82: 79 | B82: 喻常倍 | C82: 20230912 | D82: 03 | E82: ="202309024517" -> 202309024517 | F82: 202311110636 | G82: =VLOOKUP(E82,[1]笔试排名!$E$3:$F$315,2,0) -> 116.35 | H82: 83.30 | I82: 79.86
A83: 80 | B83: 周美林 | C83: 20230912 | D83: 03 | E83: ="202309022606" -> 202309022606 | F83: 202311110620 | G83: =VLOOKUP(E83,[1]笔试排名!$E$3:$F$315,2,0) -> 119.41 | H83: 80.00 | I83: 79.76
A84: 81 | B84: 吴雪雪 | C84: 20230912 | D84: 03 | E84: ="202309022828" -> 202309022828 | F84: 202311110640 | G84: =VLOOKUP(E84,[1]笔试排名!$E$3:$F$315,2,0) -> 116.06 | H84: 82.80 | I84: 79.54
A85: 82 | B85: 刘松 | C85: 20230912 | D85: 03 | E85: ="202309024501" -> 202309024501 | F85: 202311110613 | G85: =VLOOKUP(E85,[1]笔试排名!$E$3:$F$315,2,0) -> 121.22 | H85: 77.20 | I85: 79.37
A86: 83 | B86: 王臣敏 | C86: 20230912 | D86: 03 | E86: ="202309022218" -> 202309022218 | F86: 202311110641 | G86: =VLOOKUP(E86,[1]笔试排名!$E$3:$F$315,2,0) -> 115.93 | H86: 81.90 | I86: 79.13
A87: 84 | B87: 鄢忠灿 | C87: 20230912 | D87: 03 | E87: ="202309022924" -> 202309022924 | F87: 202311110623 | G87: =VLOOKUP(E87,[1]笔试排名!$E$3:$F$315,2,0) -> 119.18 | H87: 78.60 | I87: 79.11
